Cogmind - Beta 12 @@@ ROGUE MODE // 2023.09.25 @ 15:04:27 Player: Kitarik02 Result: Destroyed by Y-45 Defender with Beam Rifle Performance ------------- Evolutions (1) 500 Regions Visited (2) 400 Robots Destroyed (52) 260 Value Destroyed (1556) 1556 Prototype IDs (0) 0 Alien Tech Used (0) 0 Bonus (20) 20 TOTAL SCORE: 2736 Bonus ------- High Alert Combat Kills 20 Cogmind --------- Core Integrity 0/400 Matter 176/500 Energy 100/100 System Corruption 3% Temperature Cool (12) Movement Core (450) Ox8 Location -9/Materials Parts ------- > --- POWER (2) -------- (None) > --- PROPULSION (2) --- (None) > --- UTILITY (2) ------ Large Storage Unit High-capacity Matter Pod > --- WEAPON (3) ------- Small Laser > --- INVENTORY (15) --- Light Ion Engine Aluminum Leg Aluminum Leg Particle Gun Particle Gun Datajack Katana Peak State ------------ > --- POWER ------------ Light Ion Engine Improved Ion Engine > --- PROPULSION ------- Aluminum Leg Improved Aluminum Leg > --- UTILITY ---------- Large Storage Unit High-capacity Matter Pod > --- WEAPON ----------- Spread Laser Particle Cannon Katana > --- INVENTORY -------- Light Ion Engine Light Ion Engine Flight Unit Flight Unit EM Shotgun Small Laser Spread Laser Grenade Launcher Datajack [Rating: 16] Favorites ----------- Power Improved Ion Engine Engine Improved Ion Engine Propulsion Light Treads Treads Light Treads Leg Aluminum Leg Wheel Wheel Flight Unit Flight Unit Utility High-capacity Matter Pod Storage High-capacity Matter Pod Weapon Spread Laser Energy Gun Spread Laser Energy Cannon Particle Cannon Ballistic Gun Assault Rifle Launcher Grenade Launcher Slashing Weapon Katana Build | -11 -10 -9 ------- Run | Jun Mat Mat Slots Evolved 2 | . . 2 Power 1 | . . 1 Propulsion . | . . . Utility . | . . . Weapon 1 | . . 1 Parts Attached 44 | 6 7 31 Power 8 | 1 2 5 Engine 8 | 1 2 5 Core . | . . . Reactor . | . . . Propulsion 12 | 2 . 10 Treads 2 | 2 . . Leg 5 | . . 5 Wheel 3 | . . 3 Hover . | . . . Flight 2 | . . 2 Utility 3 | 1 2 . Device . | . . . Storage 3 | 1 2 . Processor . | . . . Hackware . | . . . Protection . | . . . Artifact . | . . . Weapon 21 | 2 3 16 Energy Gun 13 | 2 . 11 Energy Cannon 1 | . . 1 Ballistic Gun 3 | . 1 2 Ballistic Cannon . | . . . Launcher 3 | . 2 1 Special Weapon . | . . . Impact Weapon . | . . . Slashing Weapon 1 | . . 1 Piercing Weapon . | . . . Special Melee Weapon . | . . . Unidentified Prototypes . | . . . Corrupted Parts 1 | . . 1 System Corruption 3 | . . 3 Parts Lost 12 | . 1 11 Power 2 | . . 2 Propulsion 3 | . . 3 Utility . | . . . Weapon 7 | . 1 6 Highest Loss Streak 5 | . 1 5 To Critical Strikes . | . . . Average Slot Usage (%) 96 | . 98 95 Engine 16 | . 13 19 Treads 14 | . 28 3 Leg 6 | . . 12 Flight 1 | . . 2 Storage 24 | . 27 22 Energy Gun 15 | . 12 17 Energy Cannon 4 | . . 8 Ballistic Gun 2 | . 2 2 Launcher 6 | . 13 . Slashing Weapon 1 | . . 2 Naked Turns . | . . . Heaviest Build 46 | 13 36 46 Greatest Support 40 | 40 40 40 Greatest Overweight (x) 9 | . . 9 Average Overweight (x) . | . . 1 Largest Inventory Capacity 15 | 8 15 15 Average Capacity 12 | 7 9 15 Most Carried 9 | 4 8 9 Average Carried 6 | 2 5 7 Final Capacity 15 | 8 15 15 Final Carried 8 | 4 8 7 Class Distribution -------------------- 56% | Mutant 21% | Scavenger-Gunner 8% | Scavenger-Mutant 6% | Gunner 6% | Bomber Dominant Class ---------------- Mutant | -10/Materials Scavenger-Gunner | -9/Materials Resources | -11 -10 -9 ----------- Run | Jun Mat Mat Matter Collected 1131 | 260 364 507 Remotely . | . . . Salvage Created 1581 | . 409 1172 Parts 122 | . 33 89 Haulers Intercepted . | . . . Recyclers Shooed 3 | . 2 1 Parts Field Recycled . | . . . Retrieved Matter . | . . . Parts Self-Destructed . | . . . Prevented . | . . . Kills | -11 -10 -9 ------- Run | Jun Mat Mat Combat Hostiles Destroyed 41 | . 10 31 Melee 1 | . . 1 Guns 23 | . 4 19 Cannons 8 | . . 8 AOE 8 | . 6 2 Classes Destroyed 10 | . 4 6 Worker 2 | . . 2 Builder 3 | . 2 1 Tunneler 1 | . . 1 Operator 2 | . 2 . Watcher 3 | . 2 1 Swarmer 6 | . . 6 Grunt 28 | . 10 18 Brawler 1 | . . 1 Duelist 1 | . . 1 Sentry 5 | . . 5 Best Kill Streak 7 | . 3 7 Combat Bots Only 6 | . 2 6 Max Kills in Single Turn 2 | . 2 2 Gunslinging . | . . . Exploded 1 | . 1 1 Melee 1 | . . 1 Uniques/NPCs Destroyed . | . . . Combat | -11 -10 -9 -------- Run | Jun Mat Mat Damage Taken 2194 | . 344 1850 Core 510 | . 106 404 Absorbed by Shields . | . . . Core Remaining (%) 78 | 100 57 . Volleys Fired 141 | . 41 100 Largest 3 | . 2 3 Hottest 198 | . 80 198 Shots Fired 245 | . 61 184 Gun 157 | . 38 119 Cannon 62 | . . 62 Launcher 26 | . 23 3 Special . | . . . Kinetic 39 | . . 39 Thermal 126 | . 1 125 Explosive 26 | . 23 3 Electromagnetic 54 | . 37 17 Robot Hit Streak 7 | . 5 7 Robot Miss Streak 8 | . 4 8 Penetration Max . | . . . Secondary Targets 1 | . . 1 Max Gunslinging Chain 1 | . . 1 Shots Hit Robots 152 | . 33 119 Core Hits 103 | . 23 80 Critical Kills 1 | . . 1 Critical Parts Destroyed . | . . . Critical Strikes 2 | . . 2 Burn 1 | . . 1 Meltdown 1 | . . 1 Melee Attacks 8 | . . 8 Impact . | . . . Slashing 8 | . . 8 Piercing . | . . . Sneak Attacks 1 | . . 1 Combat Hostiles . | . . . Follow-up Attacks . | . . . Damage Inflicted 3458 | . 1120 2338 Guns 1365 | . 234 1131 Cannons 776 | . . 776 Explosions 1149 | . 886 263 Melee 168 | . . 168 Ramming . | . . . Kinetic 363 | . . 363 Thermal 1391 | . . 1391 Explosive 1149 | . 886 263 Electromagnetic 387 | . 234 153 Impact . | . . . Slashing 168 | . . 168 Piercing . | . . . Highest Corruption 3 | . . 3 Average Corruption 3 | . . 3 Corruption Purged . | . . . Corruption Blocked . | . . . Effects 15 | . . 15 Message Errors 5 | . . 5 Matter Fused 1 | . . 1 Heat Flow Errors 3 | . . 3 Parts Rejected 1 | . . 1 Data Loss (minor) 2 | . . 2 Data Loss (major) 2 | . . 2 Weapon Failures 1 | . . 1 Overload Shots . | . . . Overflow Damage 106 | . 47 59 Projectiles 11 | . . 11 Explosions 58 | . 47 11 Melee 37 | . . 37 Knockbacks . | . . . Impact . | . . . Kinetic . | . . . Secondary . | . . . Self-Inflicted Damage 29 | . 29 . Shots 2 | . 2 . Rammed . | . . . Targets Rammed . | . . . Kicked . | . . . Crushed . | . . . Highest Temperature 697 | . 79 697 Average Temperature 212 | . 20 244 Received Heat Transfer 882 | . 180 702 Effects 66 | . . 66 Shutdowns 19 | . . 19 Energy Bleed 6 | . . 6 Interference 11 | . . 11 Matter Decay 4 | . . 4 Short Circuit 9 | . . 9 Damage (minor) 7 | . . 7 Damage (major) 9 | . . 9 Damage (core) 1 | . . 1 Siege Activations . | . . . Robots Corrupted . | . . . Combat Hostiles . | . . . Parts Fried 1 | . 1 . Impact Corruptions . | . . . Robots Melted 1 | . . 1 Combat Hostiles 1 | . . 1 Parts Melted 5 | . . 5 Heat Transferred 2478 | . . 2478 Parts Sabotaged . | . . . Parts Stolen . | . . . Parts Stripped . | . . . Power Chain Reactions . | . . . Missiles Intercepted . | . . . Alert | -11 -10 -9 ------- Run | Jun Mat Mat Peak Influence 426 | . 247 426 Initial 51 | . . 51 Average 184 | . 119 254 Maximum Alert Level 2 | . 1 2 Low Security (%) 63 | 100 93 35 Level 1 35 | . 6 62 Level 2 1 | . . 1 Level 3 . | . . . Level 4 . | . . . Level 5 . | . . . High Security . | . . . Max Security . | . . . Squads Dispatched 7 | . 3 4 Investigation 2 | . 1 1 Extermination . | . . . Reinforcement 5 | . 2 3 Assault . | . . . Garrison . | . . . Intercept . | . . . Searches Triggered . | . . . Construction Impeded . | . . . Haulers Reinforced . | . . . Active Scanning Responses . | . . . Cargo Convoy Interrupts . | . . . Stealth | -11 -10 -9 --------- Run | Jun Mat Mat Distress Signals 7 | . 1 6 Communications Jammed . | . . . Distress Signals . | . . . Times Spotted 65 | . 20 45 Peak Tracking Total 7 | . 2 7 Tactical Retreats . | . . . Traps | -11 -10 -9 ------- Run | Jun Mat Mat Traps Triggered 3 | . 2 1 Indirectly . | . . . Trap Hack Attempts . | . . . Triggered . | . . . Disarmed . | . . . Reprogrammed . | . . . Reused . | . . . Traps Extracted . | . . . Installed . | . . . Triggered . | . . . Machines | -11 -10 -9 ---------- Run | Jun Mat Mat Machines Disabled 8 | . 5 3 Max in Single Turn 2 | . 2 1 Machines Repaired . | . . . Machines Sabotaged . | . . . Overloaded Fab Kills . | . . . Hacking | -11 -10 -9 --------- Run | Jun Mat Mat Machines Accessed 9 | . 4 5 Terminals 8 | . 4 4 Fabricators . | . . . Repair Stations . | . . . Recycling Units . | . . . Scanalyzers 1 | . . 1 Garrison Access . | . . . Total Hacks 19 | . 11 8 Successful 10 | . 5 5 Failed 9 | . 6 3 Catastrophic 1 | . . 1 Database Lockouts . | . . . Manual . | . . . Terminals 17 | . 11 6 Fabricators . | . . . Repair Stations . | . . . Recycling Units . | . . . Scanalyzers 2 | . . 2 Garrison Access . | . . . Terminal Hacks 8 | . 5 3 Record 3 | . 2 1 Emergency Access Points 1 | . 1 . Alert Level 2 | . 1 1 Unreport Threat 1 | . 1 . Transport Status 1 | . . 1 Fabricator Hacks . | . . . Repair Station Hacks . | . . . Recycling Unit Hacks . | . . . Scanalyzer 2 | . . 2 Insert Component 1 | . . 1 Analyze 1 | . . 1 Garrison Access Hacks . | . . . Unauthorized Hacks . | . . . Terminals . | . . . Fabricators . | . . . Repair Stations . | . . . Recycling Units . | . . . Scanalyzers . | . . . Garrison Access . | . . . Data Cores Recovered 1 | . 1 . Used . | . . . Hacking Detections 4 | . 1 3 Full Trace Events 1 | . 1 . Feedback Events . | . . . Feedback Blocked . | . . . Robot Schematics Acquired . | . . . Robots Built . | . . . Authchips . | . . . Time . | . . . Total Robot Build Rating . | . . . Part Schematics Acquired 1 | . . 1 Parts Built . | . . . Authchips . | . . . Time . | . . . Total Part Build Rating . | . . . Parts Repaired . | . . . Time . | . . . Parts Recycled . | . . . Recycled Matter . | . . . Retrieved Matter . | . . . Retrieved Components . | . . . Parts Scanalyzed 1 | . . 1 Part Schematics Acquired 1 | . . 1 Parts Damaged 1 | . . 1 Bothacking | -11 -10 -9 ------------ Run | Jun Mat Mat Used RIF Installer . | . . . Robots Hacked . | . . . Non-combat . | . . . Combat . | . . . Robot Hacks Applied . | . . . Relay Couplers Released . | . . . Fabnet Peak Effective % . | . . . Robots Rewired . | . . . Allies Hacked . | . . . Hacks Repelled . | . . . Allies | -11 -10 -9 -------- Run | Jun Mat Mat Total Allies . | . . . Largest Group . | . . . Highest-Rated Group . | . . . Highest-Rated Ally . | . . . Total Orders . | . . . Ally Attacks . | . . . Total Damage . | . . . Kills . | . . . Allies Corrupted . | . . . Allies Melted . | . . . Intel | -11 -10 -9 ------- Run | Jun Mat Mat Robot Analysis Total . | . . . Derelict Logs Recovered . | . . . Drone Launches . | . . . Drone Recoveries . | . . . Exploration | -11 -10 -9 ------------- Run | Jun Mat Mat Turns Passed 2526 | 110 1109 1307 Spaces Moved 1136 | 67 618 451 Core 17 | 11 . 6 Treads 752 | 56 618 78 Legs 304 | . . 304 Wheels 31 | . . 31 Hover . | . . . Flight 32 | . . 32 Fastest Speed 50 | 50 160 105 Average Speed 179 | 141 160 211 Slowest Speed 500 | 160 160 500 Overloaded Moves . | . . . Propulsion Burnouts . | . . . Robots Hopped . | . . . Cave-ins Triggered . | . . . Exploration Rate (%) 43 | 4 90 37 Regions Visited 2 Branch Regions . Pre-discovered Areas . | . . . Known Exits Taken . | . . . Unknown Exits Taken 2 | 1 1 . Scrap Searched . | . . . Spaces Dug . | . . . Terrain Destroyed 153 | . 132 21 Melee . | . . . Projectile . | . . . AOE 153 | . 132 21 Terrain Rammed . | . . . Walls Destroyed . | . . . Machines Disabled . | . . . Actions | -11 -10 -9 --------- Run | Jun Mat Mat Total 1389 | 82 677 630 Wait . | . . . Move 1134 | 66 617 451 Hop . | . . . Pick Up 43 | 10 10 23 Fast Attach . | . . . Attach 23 | 6 4 13 Detach 1 | . . 1 Swap 21 | . 3 18 Drop 18 | . 2 16 Fire 141 | . 41 100 Melee 8 | . . 8 Ram . | . . . Kick . | . . . Crush . | . . . Escape Stasis . | . . . Rewire . | . . . Trap . | . . . Miscellaneous . | . . . Route ------- -11/Junkyard -10/Materials (discovered 4 exits: *Mat x3 / [*Min]) -9/Materials (discovered 2 exits: [*Mat] / [*Min]) History --------- Turn | Location | Event 3 | -11/Junkyard | Discovered new exit (range 16) 111 | -11/Junkyard | Entered Materials 261 | -10/Materials | Discovered new exit (range 11) 300 | -10/Materials | Build established: Mutant 368 | -10/Materials | Discovered new exit (range 14) 503 | -10/Materials | Discovered new exit (range 14) 939 | -10/Materials | Discovered new exit (range 13) 1220 | -10/Materials | Entered another Materials area 1220 | -9/Materials | Evolved 2 slots: Power x1, Weapon x1 1865 | -9/Materials | Discovered new exit (range 15) 2023 | -9/Materials | Build established: Scavenger-Gunner 2259 | -9/Materials | Discovered new exit (range 8) 2424 | -9/Materials | Lost 3 parts (1p1n1w) 2434 | -9/Materials | Core integrity fell below 50% 2466 | -9/Materials | Core integrity fell below 20% 2527 | -9/Materials | Lost 5 parts (1p2n2w) 2527 | -9/Materials | Destroyed by Y-45 Defender with Beam Rifle Last Messages --------------- 02491_ K-01 Serf collects debris. 02496_ Hvy. Assault Rifle destroyed. 02497_ Acquired Sml. Laser. 02502_ K-01 Serf cleans the Terminal. 02504_ Y-45 Defender destroyed. 02505_ K-01 Serf collects debris. 02505_ K-01 Serf cleans the Terminal. 02506_ W-16 Scout sends out distress signal. 02506_ K-01 Serf collects debris. 02508_ K-01 Serf cleans the Terminal. 02508_ R-06 Scavenger collects Beam Rifle. 02511_ K-01 Serf cleans the Terminal. 02514_ R-06 Scavenger collects Lgt. Treads. 02515_ QZD95PV0E318BGVDBM A72G|D%ZBB 02515_ K-01 Serf cleans the Terminal. 02517_ Acquired Aluminum Leg. 02517_ R-06 Scavenger collects Lgt. Armor Plating. 02521_ K-01 Serf cleans the Terminal. 02522_ Acquired Aluminum Leg. 02524_ Critical hit (Burn: +37). Map ----- +----------------------------------------------------+ | ?????????????????????????????????????????? | | ######???????????????????????????????????????????? | | ?????????###?????????????????????????????????????? | | ??????####%######????????????????????????????????? | | ??????# !! #????????????????????????????????? | | ??????# #????????????????????????????????? | | ??????# """ #????????????????????????????????? | | ??????# """ #????????????????????????????????? | | ??????#"" """ #????????????????????????????????? | | ??????#"T #????????????????????????????????? | | ??????#"" #????????????????????????????????? | | ??????# #????????????????????????????????? | | ??????#####+#####????????????????????????????????? | | ########## #????#####??????????????????????????? | | # +??? ???????????????????????????? | | " """ + #?? ????????????????????????????? | | " """ # #?? ""????????????????????????????? | | " """ # #? ""????????????????????????????? | | # # !! """ #????????????????????????? | | ########## # !! #?????????????????????????? | | ########## +%! #?????????????????????????? | | # #?????????????????????????? | | ###??###########????????????????????? | | % #????????# ##+######### ????????? | | ########## #????????# ! Y[%=%[% % % ??????? | | !######## + ?????# =@%*%=*=^[% #?????? | | # # # ??#==% *! "" */""" #?????? | | # "" # # # ![ !%=""" "T" #?????? | | " # ""S # #?######### ^%[* "" #?????? | | ??# "" # ##########"m ! [ [ #?????? | | ??# + ##""!"!""#T [!%^ #?????? | | ??# # ## "!"!" #" *kk ^""" ##+#?????? | | ??# """ # ## ## = """ """ #????????? | | ??# """ # =k* """ """ ?????????? | | ??# """ # < o ??????????? | | ??# # %= ?????????? | | ??##########+## ######"T"# ?????????? | | ????# % #########????############ #????????? | | ????# ! #???????????????????????? ????????? | | ????# #??????????????????????????????????? | | ????# #??????????????????????????????????? | | ????# ! #??????????????????????????????????? | | ????# #??????????????????????????????????? | | ????# #??????????????????????????????????? | | ????# #??????????????????????????????????? | | ????###########??????????????????????????????????? | | ?????????????????????????????????????????????????? | | ?????????????????????????????????????????????????? | | ?????????????????????????????????????????????????? | | ?????????????????????????????????????????????????? | +----------------------------------------------------+ Best States ------------- Heat Dissipation 28 Energy Generation 17 Energy Capacity 415 Matter Stores 500 Matter Capacity 500 Sight Range 16 Terrain Scan Density 10 Evasion (%) 40 Recoil Reduction 2 Item Schematics ----------------- Katana | -9/Materials | Scanalyzed Robot Schematics ------------------ None Fabricated ------------ Nothing Alien Tech Used ----------------- None Achievements -------------- Everything Is Under Control It's Just You Challenges ------------ None Game ------ Seed NetworkUltimateLauncher Manual? 0 Play Time 00:29:18 Cumulative 3.5 hours Start 2023.09.25 @ 14:37:31 End 2023.09.25 @ 15:04:27 Sessions 1 Manual Loads 0 Difficulty Rogue Special Mode None Game No. 17 Rogue 17 Adventurer 0 Explorer 0 Win Type - Total 0 Types 0/0/0/0/0/0/0/0/0 Lore% 5 Gallery% 7 Achievement% 8 Wizard Run 0 Options --------- ASCII 0 Keyboard 0 Movement Mouse Keybinds 0 Fullscreen 2 Font 12/Smallcaps Map View 83x54 Tactical HUD 1 Map Filters NONE Filters NONE Steam 1 RUN: 06e49872-2d7d-4954-87f8-f74a2f12bd64